fUSD/lending_fUSD_20250416
["ID","MTS","AMOUNT","RATE_DAILY","PERIOD"]
[358161234,1744806665166,-154.747988,0.00019,2]
[358161235,1744806665212,-154.747988,0.00019,2]
[358161236,1744806665259,-260.420828,0.00019,2]
[358161237,1744806665302,-260.420828,0.00019,2]
[358161238,1744806665348,-154.747988,0.00019,2]
[358161239,1744806665390,-260.420828,0.00019,2]
[358161240,1744806665429,-154.747988,0.00019,2]
[358161241,1744806665470,-260.420828,0.00019,2]
[358161242,1744806665512,-260.420828,0.00019,2]
[358161243,1744806665552,-154.747988,0.00019,2]
[358161244,1744806665591,-154.747988,0.00019,2]
[358161245,1744806665631,-260.420828,0.00019,2]
[358161246,1744806665669,-154.747988,0.00019,2]
[358161247,1744806665710,-355.329688,0.00019,2]
[358161248,1744806665751,-355.329688,0.00019,2]
[358161249,1744806665796,-355.329688,0.00019,2]
[358161250,1744806665837,-355.329693,0.00019,2]
[358161251,1744806665876,-1381.441039,0.00019,2]
[358161252,1744806665914,-1381.441039,0.00019,2]
[358161253,1744806665953,-1381.441039,0.00019,2]
[358161254,1744806665993,-1381.441039,0.00019,2]
[358161255,1744806666034,-1381.441039,0.00019,2]
[358161256,1744806666074,-1381.441039,0.00019,2]
[358161257,1744806666113,-1381.441039,0.00019,2]
[358161258,1744806666152,-1381.441039,0.00019,2]
[358161259,1744806666190,-1381.441039,0.00019,2]
[358161260,1744806666230,-1381.441039,0.00019,2]
[358161261,1744806666270,-151.0,0.00019,2]
[358161262,1744806666309,-151.0,0.00019,2]
[358161263,1744806666352,-151.0,0.00019,2]
[358161264,1744806666392,-151.0,0.00019,2]
[358161265,1744806666433,-151.0,0.00019,2]
[358161266,1744806666474,-151.0,0.00019,2]
[358161267,1744806666518,-151.0,0.00019,2]
[358161268,1744806666558,-151.0,0.00019,2]
[358161269,1744806666596,-151.0,0.00019,2]
[358161270,1744806666634,-151.0,0.00019,2]
[358161271,1744806666673,-151.0,0.00019,2]
[358161272,1744806666711,-151.0,0.00019,2]
[358161273,1744806666751,-291.016812,0.00019,2]
[358161274,1744806666792,-151.0,0.00019,2]
[358161275,1744806666830,-151.0,0.00019,2]
[358161276,1744806666870,-151.0,0.00019,2]
[358161277,1744806666907,-151.0,0.00019,2]
[358161278,1744806666945,-151.0,0.00019,2]
[358161279,1744806666983,-151.0,0.00019,2]
[358161280,1744806667020,-151.0,0.00019,2]
[358161281,1744806667362,-151.0,0.00019,2]
[358161282,1744806667420,-151.0,0.00019,2]
[358161283,1744806667449,-151.0,0.00019,2]
[358161284,1744806667482,-151.0,0.00019,2]
[358161285,1744806667511,-151.0,0.00019,2]
[358161286,1744806667539,-151.0,0.00019,2]
[358161287,1744806667567,-151.0,0.00019,2]
[358161288,1744806667595,-151.0,0.00019,2]
[358161289,1744806667622,-151.0,0.00019,2]
[358161290,1744806667647,-151.0,0.00019,2]
[358161291,1744806667673,-151.0,0.00019,2]
[358161292,1744806667700,-151.0,0.00019,2]
[358161293,1744806667728,-151.0,0.00019,2]
[358161294,1744806667757,-183.974947,0.00019,2]
[358161295,1744806667784,-151.0,0.00019,2]
[358161296,1744806667813,-151.0,0.00019,2]
[358161297,1744806667841,-161.07205,0.00019,2]
[358161298,1744806667868,-151.0,0.00019,2]
[358161299,1744806667896,-151.0,0.00019,2]
[358161300,1744806667923,-151.0,0.00019,2]
[358161301,1744806667949,-151.0,0.00019,2]
[358161302,1744806667975,-258.159618,0.00019,2]
[358161303,1744806668003,-258.159618,0.00019,2]
[358161304,1744806668030,-258.159618,0.00019,2]
[358161305,1744806668055,-258.159618,0.00019,2]
[358161306,1744806668081,-258.159618,0.00019,2]
[358161307,1744806668107,-258.159618,0.00019,2]
[358161308,1744806668133,-258.159618,0.00019,2]
[358161309,1744806668159,-258.159613,0.00019,2]
[358161310,1744806668185,-151.0,0.00019,2]
[358161311,1744806668211,-151.0,0.00019,2]
[358161312,1744806668237,-151.0,0.00019,2]
[358161313,1744806668263,-151.0,0.00019,2]
[358161314,1744806668289,-151.0,0.00019,2]
[358161315,1744806668314,-151.0,0.00019,2]
[358161316,1744806668339,-151.0,0.00019,2]
[358161317,1744806668364,-151.0,0.00019,2]
[358161318,1744806668393,-389.125225,0.00019,2]
[358161319,1744806668419,-389.125225,0.00019,2]
[358161320,1744806668447,-389.125225,0.00019,2]
[358161321,1744806668477,-389.125225,0.00019,2]
[358161322,1744806668507,-389.125225,0.00019,2]
[358161323,1744806668535,-389.125225,0.00019,2]
[358161324,1744806668562,-389.125225,0.00019,2]
[358161325,1744806668589,-389.125229,0.00019,2]
[358161326,1744806668616,-151.0,0.00019,2]
[358161327,1744806668644,-151.0,0.00019,2]
[358161328,1744806668672,-151.0,0.00019,2]
[358161329,1744806668701,-289.57705,0.00019,2]
[358161330,1744806668731,-160.60454,0.00019,2]
[358161331,1744806668760,-151.0,0.00019,2]
[358161332,1744806668788,-151.0,0.00019,2]
[358161333,1744806668817,-151.0,0.00019,2]
[358161334,1744806668844,-151.0,0.00019,2]
[358161335,1744806668871,-151.0,0.00019,2]
[358161336,1744806668899,-151.0,0.00019,2]
[358161337,1744806668926,-151.0,0.00019,2]
[358161338,1744806668953,-151.0,0.00019,2]
[358161339,1744806668979,-151.0,0.00019,2]
[358161340,1744806669006,-152.737082,0.00019,2]
[358161341,1744806669034,-3684.376857,0.00019,2]
[358161342,1744806669060,-3684.376857,0.00019,2]
[358161343,1744806669087,-3684.376857,0.00019,2]
[358161344,1744806669114,-3684.376857,0.00019,2]
[358161345,1744806669144,-3684.376857,0.00019,2]
[358161346,1744806669172,-3684.376857,0.00019,2]
[358161347,1744806669199,-3684.376857,0.00019,2]
[358161348,1744806669229,-3684.37685,0.00019,2]
[358161349,1744806669265,-154.509444,0.00019,2]
[358161350,1744806669292,-517.668586,0.00019,2]
[358161351,1744806669319,-517.668586,0.00019,2]
[358161352,1744806669348,-517.668586,0.00019,2]
[358161353,1744806669376,-517.668586,0.00019,2]
[358161354,1744806669407,-517.668586,0.00019,2]
[358161355,1744806669444,-517.668586,0.00019,2]
[358161356,1744806669472,-1000.0,0.0001902,2]
[358161357,1744806669499,-2000.0,0.00019178,2]
[358161358,1744806669525,-262.13,0.00019178,2]
[358161359,1744806669551,-500.0,0.00019178,2]
[358161360,1744806669577,-3257.96,0.00019178,2]
[358161361,1744806669602,-2000.0,0.00019205,7]
[358161362,1744806669628,-183.79978349,0.00019233,2]
[358161363,1744806669654,-499.61,0.0001927,2]
[358161364,1744806669681,-215.0738,0.00019358,2]
[358161365,1744806669707,-151.0,0.00019384,2]
[358161366,1744806669734,-625.250843,0.00019384,2]
[358161367,1744806669760,-625.250843,0.00019384,2]
[358161368,1744806669787,-182.181845,0.00019384,2]
[358161369,1744806669817,-182.181845,0.00019384,2]
[358161370,1744806669844,-161.88,0.00019465,2]
[358161371,1744806669873,-1000.0,0.00019476,2]
[358161372,1744806669899,-250.0,0.000195,2]
[358161373,1744806669925,-250.0,0.000195,2]
[358161374,1744806669952,-250.0,0.000195,2]
[358161375,1744806669982,-420.0,0.00019532,2]
[358161376,1744806670011,-250.0,0.0001954,2]
[358161377,1744806670039,-350.0,0.0001954,12]
[358161378,1744806670066,-250.0,0.0001954,2]
[358161379,1744806670095,-3315.55457039,0.0001961,2]
[358161380,1744806670355,-165.57701,0.0001961,2]
[358161381,1744806670386,-156.86,0.0001961,2]
[358161382,1744806670413,-156.86,0.0001961,2]
[358161383,1744806670441,-151.0,0.0001961,2]
[358161384,1744806670468,-457.431546,0.0001961,2]
[358161385,1744806670495,-457.431539,0.0001961,2]
[358161386,1744806670522,-205.192483,0.0001961,2]
[358161387,1744806670550,-205.192478,0.0001961,2]
[358161388,1744806670577,-361.895135,0.0001961,2]
[358161389,1744806670604,-361.895139,0.0001961,2]
[358161390,1744806670631,-260.420828,0.0001961,2]
[358161391,1744806670659,-260.42083,0.0001961,2]
[358161392,1744806670692,-420.0,0.00019628,2]
[358161393,1744806670718,-200.65042279,0.00019644,2]
[358161394,1744806670747,-1120.0,0.00019644,2]
[358161395,1744806670775,-150.0,0.00019644,2]
[358161396,1744806670804,-621.32652505,0.00019644,2]
[358161397,1744806670832,-150.0,0.00019644,2]
[358161398,1744806670860,-462.0,0.00019644,2]
[358161399,1744806670887,-200.25827935,0.00019644,2]
[358161400,1744806670913,-500.0,0.00019644,2]
[358161401,1744806670939,-200.49700385,0.00019644,2]
[358161402,1744806670965,-500.0,0.00019644,2]
[358161403,1744806670991,-500.0,0.00019644,2]
[358161404,1744806671017,-500.0,0.00019644,2]
[358161405,1744806671044,-500.0,0.00019644,2]
[358161406,1744806671069,-178.70857312,0.00019644,2]
[358161407,1744806671096,-151.0,0.00019644,2]
[358161408,1744806671121,-152.441787,0.00019644,2]
[358161409,1744806671146,-151.0,0.00019644,2]
[358161410,1744806671174,-151.0,0.00019644,2]
[358161411,1744806671200,-180.823053,0.00019644,2]
[358161412,1744806671226,-180.823053,0.00019644,2]
[358161413,1744806671253,-151.0,0.00019644,2]
[358161414,1744806671280,-154.747988,0.00019644,2]
[358161415,1744806671307,-154.747981,0.00019644,2]
[358161416,1744806671335,-1381.441039,0.00019644,2]
[358161417,1744806671363,-1381.441037,0.00019644,2]
[358161418,1744806671392,-269.477704,0.00019644,2]
[358161419,1744806671420,-150.89051264,0.00019779,2]
[358161420,1744806671452,-159.72581196,0.00019839,2]
[358161421,1744806671481,-302.19,0.0001986,2]
[358161422,1744806671510,-300.81,0.0001986,2]
[358161423,1744806671537,-303.15,0.0001986,2]
[358161424,1744806671565,-301.04,0.0001986,2]
[358161425,1744806671591,-3027.4809352,0.0001987,2]
[358161426,1744806671618,-188.58,0.000199,2]
[358161427,1744806671644,-12148.49082006,0.000199,2]
[358161428,1744806671671,-211922.31109293,0.000199,2]
[358161429,1744806671697,-4578.42532679,0.000199,3]
[358161430,1744806671724,-2000.0,0.000199,7]
[358161431,1744806671753,-214.0,0.000199,2]
[358161432,1744806671779,-214.0,0.000199,2]
[358161433,1744806671807,-214.0,0.000199,2]
[358161434,1744806671836,-214.0,0.000199,2]
[358161435,1744806671865,-214.0,0.000199,2]
[358161436,1744806671893,-151.0,0.000199,2]
[358161437,1744806671920,-151.0,0.000199,2]
[358161438,1744806671950,-151.0,0.000199,2]
[358161439,1744806671975,-180.823053,0.000199,2]
[358161440,1744806672004,-180.823053,0.000199,2]
[358161441,1744806672033,-329.761685,0.000199,2]
[358161442,1744806672060,-329.761685,0.000199,2]
[358161443,1744806672085,-256.807192,0.000199,2]
[358161444,1744806672112,-183.79978349,0.000199,2]
[358161445,1744806672139,-151.0,0.000199,2]
[358161446,1744806672167,-625.250843,0.000199,2]
[358161447,1744806672193,-625.250836,0.000199,2]
[358161448,1744806672219,-182.181845,0.000199,2]
[358161449,1744806672249,-182.181854,0.000199,2]
[358161450,1744806672276,-159.460813,0.000199,2]
[358161451,1744806672313,-1667.81179809,0.000199,2]
[358161452,1744806672340,-305.43,0.00019935,2]
[358161453,1744806672366,-19797.30344982,0.0001994,2]
[358161454,1744806672395,-514.0,0.0001997,2]
[358161455,1744806672425,-575.8322,0.0001997,2]
[358161456,1744806672452,-500.0,0.0001998,7]
[358161457,1744806672484,-155.077906,0.00019986,2]
[358161458,1744806672513,-151.0,0.00019986,2]
[358161459,1744806672540,-151.0,0.00019986,2]
[358161460,1744806672568,-151.0,0.00019986,2]
[358161461,1744806672595,-172.250037,0.00019986,2]
[358161462,1744806672622,-180.823053,0.00019986,2]
[358161463,1744806672650,-180.823053,0.00019986,2]
[358161464,1744806672677,-180.823053,0.00019986,2]
[358161465,1744806672703,-180.823053,0.00019986,2]
[358161466,1744806672730,-329.761685,0.00019986,2]
[358161467,1744806672759,-329.761685,0.00019986,2]
[358161468,1744806672784,-155.709939,0.00019986,2]
[358161469,1744806672812,-240.9397892,0.00019986,2]
[358161470,1744806672838,-299.4490422,0.00019986,2]
[358161471,1744806672863,-357.9582953,0.00019986,2]
[358161472,1744806672888,-416.4675483,0.00019986,2]
[358161473,1744806672913,-474.9768013,0.00019986,2]
[358161474,1744806672941,-915.2598679,0.00019986,2]
[358161475,1744806672968,-1137.5194266,0.00019986,2]
[358161476,1744806672996,-1359.7789853,0.00019986,2]
[358161477,1744806673022,-1582.0385439,0.00019986,2]
[358161478,1744806673048,-1804.2981026,0.00019986,2]
[358161479,1744806673075,-4208.5397761,0.00019986,2]
[358161480,1744806673102,-4424.2693619,0.00019986,2]
[358161481,1744806673128,-4639.9989476,0.00019986,2]
[358161482,1744806673155,-4855.7285334,0.00019986,2]
[358161483,1744806673182,-5071.4581192,0.00019986,2]
[358161484,1744806673449,-25870.14851,0.00019986,2]
[358161485,1744806673479,-27196.2513197,0.00019986,2]
[358161486,1744806673506,-28522.3541294,0.00019986,2]
[358161487,1744806673533,-29848.4569391,0.00019986,2]
[358161488,1744806673562,-31174.5597488,0.00019986,2]
[358161489,1744806673588,-32839.81272569,0.00019999,2]
[358161490,1744806673615,-2796.0911683,0.0002,2]
[358161491,1744806673641,-500.0,0.0002,2]
[358161492,1744806673667,-1401325.08634002,0.0002,2]
[358161493,1744806673692,-500.0,0.0002,2]
[358161494,1744806673716,-300.27031781,0.0002,2]
[358161495,1744806673743,-5648.8524386,0.0002,2]
[358161496,1744806673772,-345783.04389041,0.0002,2]
[358161497,1744806673799,-91756.29833315,0.0002,2]
[358161498,1744806673826,-10000.0,0.0002,2]
[358161499,1744806673853,-1479.85687423,0.0002,2]
[358161500,1744806673879,-4294.88421101,0.0002,2]
[358161501,1744806673904,-50000.0,0.0002,2]
[358161502,1744806673930,-1804.6,0.0002,2]
[358161503,1744806673957,-6653.0,0.0002,2]
[358161504,1744806673985,-453119.72710962,0.0002,2]
[358161505,1744806675348,-517.668586,0.00019,2]
[358161506,1744806675358,-14493.68773954,0.0002,2]
[358161507,1744806675713,-115.95498254,0.00019,2]
[358161508,1744806676096,-336.132,0.00019,2]
[358161509,1744806678581,-65.58160046,0.00019,2]
[358161510,1744806678591,-2236698.02077302,0.0002,2]
[358161511,1744806678601,-3950.0,0.0002,2]
[358161512,1744806678610,-1249.19133833,0.0002,2]
[358161513,1744806678620,-11818.46635574,0.0002,2]
[358161514,1744806678629,-1007.92592163,0.0002,2]
[358161515,1744806678639,-1750.6248878,0.0002,2]
[358161516,1744806678648,-3000.0,0.0002,2]
[358161517,1744806678658,-1402354.36270372,0.0002,2]
[358161518,1744806678667,-107327.35818641,0.0002,2]
[358161519,1744806678677,-209450.97693807,0.0002,2]
[358161520,1744806678686,-1823391.75331178,0.0002,2]
[358161521,1744806678695,-1138358.38234027,0.0002,2]
[358161522,1744806678704,-151.0,0.0002,2]
[358161523,1744806678714,-151.0,0.0002,2]
[358161524,1744806678723,-151.0,0.0002,2]
[358161525,1744806678732,-151.0,0.0002,2]
[358161526,1744806678743,-271998.55095378,0.0002,2]
[358161527,1744806678752,-3148649.08533018,0.0002,2]
[358161528,1744806678762,-1546337.94358011,0.0002,2]
[358161529,1744806678774,-263483.65729758,0.0002,2]
[358161530,1744806678784,-22257.55001096,0.0002,2]
[358161531,1744806678793,-280950.91892679,0.0002,2]
[358161532,1744806679645,-151.0,0.00018,2]
[358161533,1744806679655,-151.0,0.00018,2]
[358161534,1744806679665,-151.0,0.00018078,2]
[358161535,1744806679674,-447.68,0.000185,2]
[358161536,1744806679684,-952724.98967501,0.0002,2]
[358161537,1744806679919,-1013.0,0.0002,6]
[358161538,1744806679929,-754.62791932,0.0002,2]
[358161539,1744806679939,-392601.18660125,0.0002,2]
[358161540,1744806679950,-481076.93011992,0.0002,2]
[358161541,1744806679960,-2000.0,0.0002,2]
[358161542,1744806679970,-8300.0,0.0002,4]
[358161543,1744806679979,-292114.5252946,0.0002,4]
[358161544,1744806679989,-1726246.35823682,0.0002,2]
[358161545,1744806679998,-531752.95070908,0.0002,2]
[358161546,1744806680008,-30000.00000003,0.0002,2]
[358161547,1744806680018,-288681.88389327,0.0002,2]
[358161548,1744806680027,-158.02,0.0002,2]
[358161549,1744806680036,-5641.691233,0.0002,2]
[358161550,1744806680046,-1407.19454436,0.0002,5]
[358161551,1744806680055,-12201.03613696,0.0002,4]
[358161552,1744806680064,-152.77,0.0002,2]
[358161553,1744806680074,-423.16,0.0002,2]
[358161554,1744806680083,-500.0,0.0002,2]
[358161555,1744806680092,-1181.09757703,0.0002,5]
[358161556,1744806680102,-8612.0,0.0002,7]
[358161557,1744806680112,-163269.95720783,0.0002,2]
[358161558,1744806680121,-651.30918135,0.0002,4]
[358161559,1744806680130,-174.12675,0.0002,2]
[358161560,1744806680140,-384.0,0.0002,2]
[358161561,1744806680149,-151.0,0.0002,2]
[358161562,1744806680158,-180.823053,0.0002,2]
[358161563,1744806680168,-180.82305,0.0002,2]
[358161564,1744806680178,-264940.51484005,0.0002,2]
[358161565,1744806680187,-264940.51484005,0.0002,2]
[358161566,1744806680196,-329.761681,0.0002,2]
[358161567,1744806680206,-2236.25325095,0.0002,2]
[358161568,1744806680215,-832.55808019,0.0002,2]
[358161569,1744806680225,-174.12675,0.0002,2]
[358161570,1744806680234,-159.0,0.0002,2]
[358161571,1744806680243,-405.78013756,0.0002,2]
[358161572,1744806680253,-243.46808254,0.0002,2]
[358161573,1744806680262,-162.31205502,0.0002,2]
[358161574,1744806680271,-2000.0,0.0002,4]
[358161575,1744806680280,-8978.02242005,0.0002001,2]
[358161576,1744806680290,-4950.09725668,0.0002001,2]
[358161577,1744806680299,-5772.0,0.0002001,2]
[358161578,1744806680308,-161.88,0.0002005,2]
[358161579,1744806680318,-500.0,0.00020068,2]
[358161580,1744806680328,-2000.0,0.00020068,2]
[358161581,1744806680337,-500.0,0.00020068,2]
[358161582,1744806680346,-585.35,0.00020117,2]
[358161583,1744806680356,-1670.63369881,0.0002015,2]
[358161584,1744806680365,-300.0,0.00020205,2]
[358161585,1744806680375,-1120.0,0.00020466,2]
[358161586,1744806680386,-150.0,0.00020466,2]
[358161587,1744806680397,-202.21337083,0.00020466,2]
[358161588,1744806680407,-462.0,0.00020466,2]
[358161589,1744806680416,-500.0,0.00020466,2]
[358161590,1744806680426,-500.0,0.00020466,2]
[358161591,1744806680437,-500.0,0.00020466,2]
[358161592,1744806680447,-301.19314765,0.00020466,2]
[358161593,1744806680455,-500.0,0.00020466,2]
[358161594,1744806680465,-246.7985267,0.0002047,5]
[358161595,1744806680475,-2000.0,0.000205,2]
[358161596,1744806680484,-150.0,0.00020505,5]
[358161597,1744806680495,-262.13,0.00020547,2]
[358161598,1744806680504,-20656.92,0.00020548,2]
[358161599,1744806680513,-161.88,0.00020634,2]
[358161600,1744806680524,-21882.84052187,0.000207,2]
[358161601,1744806680533,-223.0315306,0.00020727,2]
[358161602,1744806680542,-500.0,0.00020822,2]
[358161603,1744806680552,-7970.83,0.00020822,2]
[358161604,1744806680561,-150.0,0.00020907,2]
[358161605,1744806680570,-190.86348062,0.00021,2]
[358161606,1744806680579,-1152.4880084,0.00021,2]
[358161607,1744806680587,-190.21242985,0.00021,2]
[358161608,1744806680596,-20000.0,0.00021,2]
[358161609,1744806680605,-200.0,0.00021,2]
[358161610,1744806680614,-2000.0,0.00021,2]
[358161611,1744806680622,-250.0,0.00021,2]
[358161612,1744806680631,-250.0,0.00021,2]
[358161613,1744806680641,-350.0,0.00021,2]
[358161614,1744806680650,-500.0,0.00021164,2]
[358161615,1744806680659,-2000.0,0.00021164,2]
[358161616,1744806680668,-181.73,0.00021285,2]
[358161617,1744806680678,-1120.0,0.00021288,2]
[358161618,1744806680688,-150.0,0.00021288,2]
[358161619,1744806680698,-462.0,0.00021288,2]
[358161620,1744806680707,-500.0,0.00021288,2]
[358161621,1744806680718,-500.0,0.00021288,2]
[358161622,1744806680727,-500.0,0.00021288,2]
[358161623,1744806680738,-500.0,0.00021288,2]
[358161624,1744806680747,-587.0,0.00021314,2]
[358161625,1744806680757,-545.0,0.00021353,2]
[358161626,1744806680766,-897.0,0.00021353,2]
[358161627,1744806680775,-1279.0,0.00021353,2]
[358161628,1744806680785,-1438.0,0.00021353,2]
[358161629,1744806680794,-576.0,0.00021353,2]
[358161630,1744806680806,-4148.0,0.00021353,2]
[358161631,1744806680815,-1288.0,0.00021353,2]
[358161632,1744806680825,-152.0,0.00021353,2]
[358161633,1744806680834,-2047.0,0.00021353,2]
[358161634,1744806680843,-1328.0,0.00021353,2]
[358161635,1744806680852,-398.15,0.00021357,3]
[358161636,1744806680861,-150.0,0.00021367,2]
[358161637,1744806680870,-5101.19,0.0002137,2]
[358161638,1744806680880,-2000.0,0.000215,2]
[358161639,1744806680890,-587.0,0.00021524,2]
[358161640,1744806680900,-230.8051,0.00021527,5]
[358161641,1744806680909,-1000.0,0.0002164,2]
[358161642,1744806680920,-150.0,0.00021643,2]
[358161643,1744806680931,-500.0,0.00021644,2]
[358161644,1744806680940,-7299.90014584,0.000217,2]
[358161645,1744806680950,-150.0,0.0002178,2]
[358161646,1744806680959,-5434.0,0.000218,2]
[358161647,1744806680969,-5625.0,0.00021917,2]
[358161648,1744806680979,-262.13,0.00021917,2]
[358161649,1744806680989,-150.0,0.00021917,2]
[358161650,1744806680998,-151.0,0.00021918,2]
[358161651,1744806681007,-151.0,0.00021918,2]
[358161652,1744806681017,-151.0,0.00021918,2]
[358161653,1744806681027,-151.0,0.00021918,2]
[358161654,1744806681038,-151.0,0.00021918,2]
[358161655,1744806681047,-186.028858,0.00021918,2]
[358161656,1744806681057,-150.0,0.00021918,2]
[358161657,1744806681067,-560.099,0.00021918,2]
[358161658,1744806681077,-339.58409439,0.00021918,7]
[358161659,1744806681086,-500.0,0.00021918,2]
[358161660,1744806681095,-150.0,0.00021918,2]
[358161661,1744806681105,-247.27088194,0.00022,2]
[358161662,1744806681115,-500.0,0.00022,2]
[358161663,1744806681124,-2000.0,0.00022,2]
[358161664,1744806681134,-35191.9227611,0.00022,7]
[358161665,1744806681143,-5988.62,0.00022,2]
[358161666,1744806681152,-763.09060894,0.00022,7]
[358161667,1744806681162,-150.0,0.00022054,2]
[358161668,1744806681172,-231.28369723,0.00022096,2]
[358161669,1744806681182,-1120.0,0.0002211,2]
[358161670,1744806681191,-249.1998,0.0002211,2]
[358161671,1744806681201,-462.0,0.0002211,2]
[358161672,1744806681210,-500.0,0.0002211,2]
[358161673,1744806681220,-500.0,0.0002211,2]
[358161674,1744806681230,-500.0,0.0002211,2]
[358161675,1744806681240,-187.86581996,0.0002211,2]
[358161676,1744806681249,-231.73925058,0.0002211,2]
[358161677,1744806681259,-150.0,0.00022191,2]
[358161678,1744806681268,-500.0,0.0002226,2]
[358161679,1744806681278,-2000.0,0.0002226,2]
[358161680,1744806681288,-500.0,0.0002226,2]
[358161681,1744806681297,-150.0,0.00022328,2]
[358161682,1744806681307,-585.35,0.00022381,2]
[358161683,1744806681317,-150.0,0.00022465,2]
[358161684,1744806681327,-500.0,0.00022466,2]
[358161685,1744806681336,-500.0,0.00022466,2]
[358161686,1744806681346,-500.0,0.00022466,2]
[358161687,1744806681356,-500.0,0.00022466,2]
[358161688,1744806681366,-500.0,0.00022466,2]
[358161689,1744806681376,-500.0,0.00022466,2]
[358161690,1744806681388,-500.0,0.00022466,2]
[358161691,1744806681398,-500.0,0.00022466,2]
[358161692,1744806681408,-500.0,0.00022466,2]
[358161693,1744806681418,-500.0,0.00022466,2]
[358161694,1744806681429,-500.0,0.00022466,2]
[358161695,1744806681439,-500.0,0.00022466,2]
[358161696,1744806681449,-500.0,0.00022466,2]
[358161697,1744806681459,-500.0,0.00022466,2]
[358161698,1744806681469,-500.0,0.00022466,2]
[358161699,1744806681479,-500.0,0.00022466,2]
[358161700,1744806681490,-500.0,0.00022466,2]
[358161701,1744806681500,-690.12554306,0.00022466,2]
[358161702,1744806681509,-150.0,0.00022495,2]
[358161703,1744806681519,-34193.68463533,0.000225,2]
[358161704,1744806681528,-2000.0,0.000225,2]
[358161705,1744806681538,-782.0,0.0002256,2]
[358161706,1744806681548,-150.0,0.00022602,2]
[358161707,1744806681558,-504.41600646,0.0002271,2]
[358161708,1744806681568,-223.39126779,0.00022739,2]
[358161709,1744806681577,-506.91366527,0.0002274,2]
[358161710,1744806681587,-2000.0,0.00022885,2]
[358161711,1744806681596,-1120.0,0.00022932,2]
[358161712,1744806681606,-462.0,0.00022932,2]
[358161713,1744806681615,-500.0,0.00022932,2]
[358161714,1744806681625,-500.0,0.00022932,2]
[358161715,1744806681635,-500.0,0.00022932,2]
[358161716,1744806681645,-21806.92817333,0.00023,2]
[358161717,1744806681654,-2000.0,0.00023,2]
[358161718,1744806681663,-400.0,0.00023,2]
[358161719,1744806681673,-200.0,0.00023,2]
[358161720,1744806681682,-2000.0,0.00023,4]
[358161721,1744806681691,-402.6497491,0.0002301,2]
[358161722,1744806681700,-150.0,0.00023071,2]
[358161723,1744806681710,-50279.88756777,0.000232,2]
[358161724,1744806681720,-823.0,0.00023258,2]
[358161725,1744806681730,-262.13,0.00023287,2]
[358161726,1744806681740,-500.0,0.00023288,2]
[358161727,1744806681753,-500.0,0.00023356,2]
[358161728,1744806681763,-1000.0,0.00023452,2]
[358161729,1744806681772,-1000.0,0.00023452,2]
[358161730,1744806681782,-239.84119403,0.00023465,2]
[358161731,1744806681791,-200.0,0.000235,2]
[358161732,1744806681801,-2000.0,0.000235,2]
[358161733,1744806681812,-201.76963932,0.00023549,7]